fUST/lending_fUST_20250806
["ID","MTS","AMOUNT","RATE_DAILY","PERIOD"]
[377466675,1754417467360,-2734.1,0.00031506,2]
[377466676,1754417467370,-520.53,0.00031506,2]
[377466677,1754417467380,-523.11,0.00031506,2]
[377466678,1754417467390,-792.78,0.00031506,2]
[377466679,1754417467400,-11425.63,0.00031506,2]
[377466680,1754417467409,-460.0,0.00031506,2]
[377466681,1754417467419,-763.1,0.00031506,2]
[377466682,1754417467428,-460.0,0.00031506,2]
[377466683,1754417467438,-1070.04,0.00031506,2]
[377466684,1754417467447,-460.0,0.00031506,2]
[377466685,1754417467456,-662.66,0.00031506,2]
[377466686,1754417467466,-494.93,0.00031506,2]
[377466687,1754417467475,-548.79933557,0.00031506,2]
[377466688,1754417467486,-460.0,0.00031506,2]
[377466689,1754417467495,-460.0,0.00031506,2]
[377466690,1754417467505,-460.0,0.00031506,2]
[377466691,1754417467514,-734.18,0.00031506,2]
[377466692,1754417467523,-460.0,0.00031506,2]
[377466693,1754417467533,-460.0,0.00031506,2]
[377466694,1754417467543,-460.0,0.00031506,2]
[377466695,1754417467552,-460.0,0.0003178,2]
[377466696,1754417467563,-522.56,0.0003178,2]
[377466697,1754417467572,-578.04,0.0003178,2]
[377466698,1754417467581,-460.0,0.0003178,2]
[377466699,1754417467591,-714.92,0.0003178,2]
[377466700,1754417467601,-460.0,0.0003178,2]
[377466701,1754417467612,-580.12,0.0003178,2]
[377466702,1754417467623,-999.21,0.0003178,2]
[377466703,1754417467632,-565.62,0.0003178,2]
[377466704,1754417467642,-595.7,0.0003178,2]
[377466705,1754417467651,-2734.1,0.0003178,2]
[377466706,1754417467665,-520.53,0.0003178,2]
[377466707,1754417467675,-523.11,0.0003178,2]
[377466708,1754417467685,-792.78,0.0003178,2]
[377466709,1754417467694,-11425.63,0.0003178,2]
[377466710,1754417467706,-460.0,0.0003178,2]
[377466711,1754417467716,-763.1,0.0003178,2]
[377466712,1754417467728,-460.0,0.0003178,2]
[377466713,1754417467739,-1070.04,0.0003178,2]
[377466714,1754417467748,-460.0,0.0003178,2]
[377466715,1754417467758,-662.66,0.0003178,2]
[377466716,1754417467767,-494.93,0.0003178,2]
[377466717,1754417467776,-460.0,0.0003178,2]
[377466718,1754417467786,-460.0,0.0003178,2]
[377466719,1754417467796,-460.0,0.0003178,2]
[377466720,1754417467806,-734.18,0.0003178,2]
[377466721,1754417467815,-460.0,0.0003178,2]
[377466722,1754417467824,-460.0,0.0003178,2]
[377466723,1754417467835,-460.0,0.0003178,2]
[377466724,1754417467844,-960.0,0.00031784,2]
[377466725,1754417467853,-220.132004,0.00031959,2]
[377466726,1754417467867,-169.20979587,0.00032,2]
[377466727,1754417467877,-971.0,0.00032015,2]
[377466728,1754417467886,-2148.0,0.00032015,2]
[377466729,1754417467897,-636.0,0.00032015,2]
[377466730,1754417467906,-408.0,0.00032015,2]
[377466731,1754417467915,-460.0,0.00032054,2]
[377466732,1754417467925,-522.56,0.00032054,2]
[377466733,1754417467935,-578.04,0.00032054,2]
[377466734,1754417467943,-460.0,0.00032054,2]
[377466735,1754417467953,-714.92,0.00032054,2]
[377466736,1754417467964,-460.0,0.00032054,2]
[377466737,1754417467973,-580.12,0.00032054,2]
[377466738,1754417467984,-999.21,0.00032054,2]
[377466739,1754417467994,-565.62,0.00032054,2]
[377466740,1754417468003,-595.7,0.00032054,2]
[377466741,1754417468013,-2734.1,0.00032054,2]
[377466742,1754417468023,-520.53,0.00032054,2]
[377466743,1754417468033,-523.11,0.00032054,2]
[377466744,1754417468042,-792.78,0.00032054,2]
[377466745,1754417468053,-11425.63,0.00032054,2]
[377466746,1754417468062,-460.0,0.00032054,2]
[377466747,1754417468073,-763.1,0.00032054,2]
[377466748,1754417468085,-460.0,0.00032054,2]
[377466749,1754417468095,-1070.04,0.00032054,2]
[377466750,1754417468189,-212.96219576,0.00032054,2]
[377466751,1754417468200,-662.66,0.00032054,2]
[377466752,1754417468209,-494.93,0.00032054,2]
[377466753,1754417468219,-460.0,0.00032054,2]
[377466754,1754417468228,-460.0,0.00032054,2]
[377466755,1754417468238,-279.42721173,0.00032054,2]
[377466756,1754417468247,-734.18,0.00032054,2]
[377466757,1754417468256,-460.0,0.00032054,2]
[377466758,1754417468266,-231.620458,0.00032054,2]
[377466759,1754417468276,-460.0,0.00032054,2]
[377466760,1754417468285,-200.0,0.00032284,120]
[377466761,1754417468296,-460.0,0.00032328,2]
[377466762,1754417468305,-157.520123,0.00032328,7]
[377466763,1754417468315,-157.520123,0.00032328,7]
[377466764,1754417468324,-151.0,0.00032328,7]
[377466765,1754417468333,-522.56,0.00032328,2]
[377466766,1754417468342,-578.04,0.00032328,2]
[377466767,1754417468352,-460.0,0.00032328,2]
[377466768,1754417468361,-714.92,0.00032328,2]
[377466769,1754417468371,-460.0,0.00032328,2]
[377466770,1754417468381,-580.12,0.00032328,2]
[377466771,1754417468390,-999.21,0.00032328,2]
[377466772,1754417468400,-565.62,0.00032328,2]
[377466773,1754417468409,-595.7,0.00032328,2]
[377466774,1754417468418,-2734.1,0.00032328,2]
[377466775,1754417468427,-520.53,0.00032328,2]
[377466776,1754417468436,-523.11,0.00032328,2]
[377466777,1754417468446,-792.78,0.00032328,2]
[377466778,1754417468455,-11425.63,0.00032328,2]
[377466779,1754417468465,-460.0,0.00032328,2]
[377466780,1754417468474,-763.1,0.00032328,2]
[377466781,1754417468484,-460.0,0.00032328,2]
[377466782,1754417468493,-1070.04,0.00032328,2]
[377466783,1754417468503,-662.66,0.00032328,2]
[377466784,1754417468512,-494.93,0.00032328,2]
[377466785,1754417468521,-460.0,0.00032328,2]
[377466786,1754417468531,-460.0,0.00032328,2]
[377466787,1754417468539,-734.18,0.00032328,2]
[377466788,1754417468550,-460.0,0.00032328,2]
[377466789,1754417468559,-460.0,0.00032328,2]
[377466790,1754417468569,-520.46807936,0.00032332,2]
[377466791,1754417468579,-169.20979587,0.00032438,2]
[377466792,1754417468589,-5000.0,0.00032483,4]
[377466793,1754417468598,-460.0,0.00032602,2]
[377466794,1754417468607,-157.520123,0.00032602,7]
[377466795,1754417468617,-157.520123,0.00032602,7]
[377466796,1754417468626,-151.0,0.00032602,7]
[377466797,1754417468639,-522.56,0.00032602,2]
[377466798,1754417468648,-578.04,0.00032602,2]
[377466799,1754417468661,-460.0,0.00032602,2]
[377466800,1754417468671,-714.92,0.00032602,2]
[377466801,1754417468681,-326.43449046,0.00032602,2]
[377466802,1754417468690,-580.12,0.00032602,2]
[377466803,1754417468700,-999.21,0.00032602,2]
[377466804,1754417468711,-565.62,0.00032602,2]
[377466805,1754417468733,-595.7,0.00032602,2]
[377466806,1754417468744,-2734.1,0.00032602,2]
[377466807,1754417468753,-520.53,0.00032602,2]
[377466808,1754417468763,-523.11,0.00032602,2]
[377466809,1754417468772,-792.78,0.00032602,2]
[377466810,1754417468782,-11425.63,0.00032602,2]
[377466811,1754417468792,-436.87936622,0.00032602,2]
[377466812,1754417468801,-763.1,0.00032602,2]
[377466813,1754417468810,-423.82061379,0.00032602,2]
[377466814,1754417468820,-1070.04,0.00032602,2]
[377466815,1754417468830,-662.66,0.00032602,2]
[377466816,1754417468839,-494.93,0.00032602,2]
[377466817,1754417468848,-460.0,0.00032602,2]
[377466818,1754417468857,-460.0,0.00032602,2]
[377466819,1754417468868,-734.18,0.00032602,2]
[377466820,1754417468877,-180.82547486,0.00032602,2]
[377466821,1754417468887,-451.11441632,0.00032602,2]
[377466822,1754417468897,-823.0,0.00032826,2]
[377466823,1754417468906,-169.20979587,0.00032849,2]
[377466824,1754417468915,-522.56,0.00032876,2]
[377466825,1754417468925,-578.04,0.00032876,2]
[377466826,1754417468934,-460.0,0.00032876,2]
[377466827,1754417468943,-714.92,0.00032876,2]
[377466828,1754417468952,-580.12,0.00032876,2]
[377466829,1754417468962,-999.21,0.00032876,2]
[377466830,1754417468972,-565.62,0.00032876,2]
[377466831,1754417468981,-595.7,0.00032876,2]
[377466832,1754417468990,-2734.1,0.00032876,2]
[377466833,1754417468999,-520.53,0.00032876,2]
[377466834,1754417469009,-523.11,0.00032876,2]
[377466835,1754417469018,-792.78,0.00032876,2]
[377466836,1754417469028,-11425.63,0.00032876,2]
[377466837,1754417469037,-763.1,0.00032876,2]
[377466838,1754417469047,-1070.04,0.00032876,2]
[377466839,1754417469056,-662.66,0.00032876,2]
[377466840,1754417469066,-494.93,0.00032876,2]
[377466841,1754417469075,-460.0,0.00032876,2]
[377466842,1754417469085,-460.0,0.00032876,2]
[377466843,1754417469094,-734.18,0.00032876,2]
[377466844,1754417469103,-1940.58,0.00032876,120]
[377466845,1754417469113,-500.0,0.00032877,5]
[377466846,1754417469124,-19414.75,0.000329,14]
[377466847,1754417469133,-3552.81,0.000329,7]
[377466848,1754417469141,-1458.65,0.000329,7]
[377466849,1754417469151,-38947.64,0.000329,14]
[377466850,1754417469160,-194.7,0.00032956,15]
[377466851,1754417469169,-157.520123,0.0003315,14]
[377466852,1754417469178,-157.520123,0.0003315,14]
[377466853,1754417469188,-151.0,0.0003315,14]
[377466854,1754417469201,-522.56,0.0003315,2]
[377466855,1754417469215,-578.04,0.0003315,2]
[377466856,1754417469232,-460.0,0.0003315,2]
[377466857,1754417469241,-714.92,0.0003315,2]
[377466858,1754417469250,-580.12,0.0003315,2]
[377466859,1754417469259,-999.21,0.0003315,2]
[377466860,1754417469269,-565.62,0.0003315,2]
[377466861,1754417469278,-595.7,0.0003315,2]
[377466862,1754417469287,-2734.1,0.0003315,2]
[377466863,1754417469296,-520.53,0.0003315,2]
[377466864,1754417469306,-523.11,0.0003315,2]
[377466865,1754417469315,-792.78,0.0003315,2]
[377466866,1754417469325,-11425.63,0.0003315,2]
[377466867,1754417469334,-763.1,0.0003315,2]
[377466868,1754417469343,-1070.04,0.0003315,2]
[377466869,1754417469353,-662.66,0.0003315,2]
[377466870,1754417469362,-494.93,0.0003315,2]
[377466871,1754417469375,-400.70239934,0.0003315,2]
[377466872,1754417469384,-460.0,0.0003315,2]
[377466873,1754417469394,-734.18,0.0003315,2]
[377466874,1754417469403,-445.355619,0.00033165,2]
[377466875,1754417469413,-169.20979587,0.00033288,30]
[377466876,1754417469423,-478.3353844,0.00033354,2]
[377466877,1754417469432,-522.56,0.00033424,2]
[377466878,1754417469442,-578.04,0.00033424,2]
[377466879,1754417469562,-460.0,0.00033424,2]
[377466880,1754417469572,-714.92,0.00033424,2]
[377466881,1754417469581,-580.12,0.00033424,2]
[377466882,1754417469590,-999.21,0.00033424,2]
[377466883,1754417469599,-565.62,0.00033424,2]
[377466884,1754417469609,-595.7,0.00033424,2]
[377466885,1754417469618,-2734.1,0.00033424,2]
[377466886,1754417469629,-520.53,0.00033424,2]
[377466887,1754417469638,-523.11,0.00033424,2]
[377466888,1754417469648,-792.78,0.00033424,2]
[377466889,1754417469661,-11425.63,0.00033424,2]
[377466890,1754417469671,-763.1,0.00033424,2]
[377466891,1754417469681,-1070.04,0.00033424,2]
[377466892,1754417469691,-662.66,0.00033424,2]
[377466893,1754417469701,-494.93,0.00033424,2]
[377466894,1754417469711,-460.0,0.00033424,2]
[377466895,1754417469721,-734.18,0.00033424,2]
[377466896,1754417469731,-200.0,0.000336,120]
[377466897,1754417469742,-200.0,0.000336,120]
[377466898,1754417469751,-200.0,0.000336,120]
[377466899,1754417469761,-225.41743,0.000336,120]
[377466900,1754417469771,-200.0,0.000336,120]
[377466901,1754417469781,-522.57,0.00033698,2]
[377466902,1754417469790,-578.05804801,0.00033698,2]
[377466903,1754417469799,-180.3,0.00033698,2]
[377466904,1754417469809,-715.06,0.00033698,2]
[377466905,1754417469817,-580.23472646,0.00033698,2]
[377466906,1754417469826,-999.40182755,0.00033698,2]
[377466907,1754417469835,-565.82514132,0.00033698,2]
[377466908,1754417469845,-595.72535,0.00033698,2]
[377466909,1754417469855,-2734.24016736,0.00033698,2]
[377466910,1754417469864,-520.58675839,0.00033698,2]
[377466911,1754417469875,-523.20510058,0.00033698,2]
[377466912,1754417469885,-792.99605655,0.00033698,2]
[377466913,1754417469895,-11425.81998785,0.00033698,2]
[377466914,1754417469904,-763.13709726,0.00033698,2]
[377466915,1754417469914,-1070.27314282,0.00033698,2]
[377466916,1754417469923,-662.66125811,0.00033698,2]
[377466917,1754417469933,-495.02944831,0.00033698,2]
[377466918,1754417469943,-242.56412342,0.00033698,2]
[377466919,1754417469952,-734.3321168,0.00033698,2]
[377466920,1754417469962,-1940.58,0.00033698,120]
[377466921,1754417469972,-169.20979587,0.00033726,30]
[377466922,1754417469981,-157.520123,0.000339,14]
[377466923,1754417469991,-157.520123,0.000339,14]
[377466924,1754417470001,-151.0,0.000339,14]
[377466925,1754417470010,-211.09,0.00033994,2]
[377466926,1754417470020,-216.4206905,0.00034,120]
[377466927,1754417470029,-762.01245434,0.00034037,2]
[377466928,1754417470038,-5783.60216059,0.00034223,2]
[377466929,1754417470048,-200.0,0.00034224,15]
[377466930,1754417470057,-200.0,0.00034224,15]
[377466931,1754417470067,-200.0,0.00034224,15]
[377466932,1754417470076,-379.0,0.00034224,15]
[377466933,1754417470085,-1940.58,0.0003452,120]
[377466934,1754417470094,-194.7,0.00034923,15]
[377466935,1754417470104,-38947.64,0.00035,14]
[377466936,1754417470114,-971.0,0.00035015,2]
[377466937,1754417470125,-2148.0,0.00035015,2]
[377466938,1754417470134,-636.0,0.00035015,2]
[377466939,1754417470152,-408.0,0.00035015,2]
[377466940,1754417470171,-1458.65,0.000351,7]
[377466941,1754417470189,-200.0,0.00035156,120]
[377466942,1754417470209,-3552.81,0.000352,7]
[377466943,1754417470228,-19414.75,0.000353,14]
[377466944,1754417470246,-1940.58,0.00035342,120]
[377466945,1754417470263,-220.132004,0.00035383,2]
[377466946,1754417470279,-200.0,0.000355,120]
[377466947,1754417470293,-200.0,0.000355,120]
[377466948,1754417470310,-1152.0,0.00035529,2]
[377466949,1754417470330,-1000.0,0.00035616,5]
[377466950,1754417470347,-292.9155566,0.00035773,30]
[377466951,1754417470359,-292.9155566,0.00035773,30]
[377466952,1754417470378,-389.4857916,0.00035773,30]
[377466953,1754417470391,-160.0,0.00035909,2]
[377466954,1754417470408,-153.0,0.00035981,30]
[377466955,1754417470421,-314.4346216,0.00035981,30]
[377466956,1754417470435,-292.9155566,0.00035981,30]
[377466957,1754417470449,-12500.0,0.00036066,10]
[377466958,1754417470463,-12500.0,0.00036075,10]
[377466959,1754417470477,-1940.58,0.00036164,120]
[377466960,1754417470491,-194.7,0.00036891,15]
[377466961,1754417470505,-1940.58,0.00036986,120]
[377466962,1754417470520,-216.4206905,0.00037,10]
[377466963,1754417470534,-153.0,0.00037,120]
[377466964,1754417470549,-12655.02535889,0.00037,10]
[377466965,1754417470563,-12655.02535889,0.00037,120]
[377466966,1754417470576,-461.15695721,0.00037,10]
[377466967,1754417470591,-160.0,0.00037,120]
[377466968,1754417470605,-527.3554621,0.00037,120]
[377466969,1754417470619,-527.3554621,0.00037,10]
[377466970,1754417470631,-200.0,0.00037208,120]
[377466971,1754417470640,-813.313,0.00037252,7]
[377466972,1754417470652,-2200.0,0.00037252,7]
[377466973,1754417470661,-157.520123,0.0003726,14]
[377466974,1754417470670,-157.520123,0.0003726,14]
[377466975,1754417470679,-151.0,0.0003726,14]
[377466976,1754417470689,-38947.64,0.000373,14]
[377466977,1754417470699,-211.09,0.00037367,2]
[377466978,1754417470708,-200.0,0.000374,120]
[377466979,1754417470717,-1458.65,0.000374,7]
[377466980,1754417470728,-200.0,0.00037517,15]
[377466981,1754417470739,-200.0,0.00037517,15]
[377466982,1754417470748,-200.0,0.00037517,15]
[377466983,1754417470758,-200.0,0.00037517,15]
[377466984,1754417470767,-200.0,0.00037517,15]
[377466985,1754417470776,-371.0,0.00037517,15]
[377466986,1754417470787,-455.522125,0.00037664,2]
[377466987,1754417470796,-3552.81,0.000377,7]
[377466988,1754417470806,-153.0,0.00037715,30]
[377466989,1754417470815,-1021.2704496,0.00037715,30]
[377466990,1754417470825,-153.0,0.00037715,30]
[377466991,1754417470834,-153.0,0.00037715,30]
[377466992,1754417470843,-400.0,0.0003777,5]
[377466993,1754417470851,-1940.58,0.00037808,120]
[377466994,1754417470860,-430.7234783,0.00037837,30]
[377466995,1754417470869,-292.9155566,0.00037837,30]
[377466996,1754417470878,-160.3162146,0.00037837,30]
[377466997,1754417470888,-578.9513623,0.00037837,30]
[377466998,1754417471090,-430.7234783,0.00037837,30]
[377466999,1754417471104,-292.9155566,0.00037837,30]
[377467000,1754417471115,-160.3162146,0.00037837,30]
[377467001,1754417471125,-578.9513623,0.00037837,30]
[377467002,1754417471134,-430.7234783,0.00037837,30]
[377467003,1754417471143,-160.3162146,0.00037837,30]
[377467004,1754417471152,-292.9155566,0.00037837,30]
[377467005,1754417471161,-578.9513623,0.00037837,30]
[377467006,1754417471170,-430.7234783,0.00037837,30]
[377467007,1754417471178,-292.9155566,0.00037837,30]
[377467008,1754417471188,-578.9513623,0.00037837,30]
[377467009,1754417471197,-430.7234783,0.00037837,30]
[377467010,1754417471206,-578.9513623,0.00037837,30]
[377467011,1754417471215,-292.9155566,0.00037837,30]
[377467012,1754417471225,-578.9513623,0.00037837,30]
[377467013,1754417471234,-430.7234783,0.00037837,30]
[377467014,1754417471243,-292.9155566,0.00037837,30]
[377467015,1754417471252,-160.3162146,0.00037837,30]
[377467016,1754417471261,-430.7234783,0.00037837,30]
[377467017,1754417471270,-160.3162146,0.00037837,30]
[377467018,1754417471280,-578.9513623,0.00037837,30]
[377467019,1754417471289,-292.9155566,0.00037837,30]
[377467020,1754417471298,-160.3162146,0.00037837,30]
[377467021,1754417471307,-292.9155566,0.00037837,30]
[377467022,1754417471316,-578.9513623,0.00037837,30]
[377467023,1754417471326,-430.7234783,0.00037837,30]
[377467024,1754417471335,-160.3162146,0.00037837,30]
[377467025,1754417471344,-292.9155566,0.00037837,30]
[377467026,1754417471353,-578.9513623,0.00037837,30]
[377467027,1754417471362,-430.7234783,0.00037837,30]
[377467028,1754417471372,-160.3162146,0.00037837,30]
[377467029,1754417471382,-292.9155566,0.00037837,30]
[377467030,1754417471391,-578.9513623,0.00037837,30]
[377467031,1754417471400,-430.7234783,0.00037837,30]
[377467032,1754417471409,-160.3162146,0.00037837,30]
[377467033,1754417471418,-292.9155566,0.00037837,30]
[377467034,1754417471428,-578.9513623,0.00037837,30]
[377467035,1754417471437,-793.0540063,0.00037837,30]
[377467036,1754417471447,-160.3162146,0.00037837,30]
[377467037,1754417471456,-292.9155566,0.00037837,30]
[377467038,1754417471466,-578.9513623,0.00037837,30]
[377467039,1754417471475,-160.3162146,0.00037837,30]
[377467040,1754417471484,-292.9155566,0.00037837,30]
[377467041,1754417471494,-578.9513623,0.00037837,30]
[377467042,1754417471503,-160.3162146,0.00037837,30]
[377467043,1754417471512,-578.9513623,0.00037837,30]
[377467044,1754417471521,-160.3162146,0.00037837,30]
[377467045,1754417471531,-578.9513623,0.00037837,30]
[377467046,1754417471540,-160.3162146,0.00037837,30]
[377467047,1754417471549,-160.3162146,0.00037837,30]
[377467048,1754417471558,-578.9513623,0.00037837,30]
[377467049,1754417471567,-262.0906476,0.00037837,30]
[377467050,1754417471576,-153.0,0.00037837,30]
[377467051,1754417471585,-400.9420535,0.00037837,30]
[377467052,1754417471595,-153.0,0.00037837,30]
[377467053,1754417471604,-153.0,0.00037837,30]
[377467054,1754417471613,-153.0,0.00037837,30]
[377467055,1754417471623,-153.0,0.00037837,30]
[377467056,1754417471632,-153.0,0.00037837,30]
[377467057,1754417471642,-153.0,0.00037837,30]
[377467058,1754417471652,-153.0,0.00037837,30]
[377467059,1754417471665,-153.0,0.00037837,30]
[377467060,1754417471674,-153.0,0.00037837,30]
[377467061,1754417471683,-153.0,0.00037837,30]
[377467062,1754417471695,-153.0,0.00037837,30]
[377467063,1754417471704,-153.0,0.00037837,30]
[377467064,1754417471714,-153.0,0.00037837,30]
[377467065,1754417471723,-153.0,0.00037837,30]
[377467066,1754417471733,-153.0,0.00037837,30]
[377467067,1754417471742,-153.0,0.00037837,30]
[377467068,1754417471752,-153.0,0.00037837,30]
[377467069,1754417471761,-153.0,0.00037837,30]
[377467070,1754417471770,-153.0,0.00037837,30]
[377467071,1754417471780,-153.0,0.00037837,30]
[377467072,1754417471789,-153.0,0.00037837,30]
[377467073,1754417471798,-153.0,0.00037837,30]
[377467074,1754417471808,-153.0,0.00037837,30]
[377467075,1754417471817,-153.0,0.00037837,30]
[377467076,1754417471827,-153.0,0.00037837,30]
[377467077,1754417471836,-153.0,0.00037837,30]
[377467078,1754417471846,-153.0,0.00037837,30]
[377467079,1754417471855,-153.0,0.00037837,30]
[377467080,1754417471864,-153.0,0.00037837,30]
[377467081,1754417471875,-153.0,0.00037837,30]
[377467082,1754417471884,-156.7680326,0.00037837,30]
[377467083,1754417471894,-153.0,0.00037837,30]
[377467084,1754417471903,-153.0,0.00037837,30]
[377467085,1754417471912,-153.0,0.00037837,30]
[377467086,1754417471923,-153.0,0.00037837,30]
[377467087,1754417471932,-211.09,0.00037842,2]
[377467088,1754417471941,-12655.02535889,0.00038,30]
[377467089,1754417471950,-461.15695721,0.00038,30]
[377467090,1754417471960,-160.0,0.00038,30]
[377467091,1754417471970,-160.0,0.00038,30]
[377467092,1754417471980,-527.3554621,0.00038,30]
[377467093,1754417471989,-160.0,0.00038,30]
[377467094,1754417471998,-577.774,0.00038015,2]
[377467095,1754417472008,-408.0,0.00038015,2]
[377467096,1754417472017,-800.0,0.00038044,5]
[377467097,1754417472026,-153.0,0.00038217,30]
[377467098,1754417472035,-153.0,0.00038217,30]
[377467099,1754417472045,-153.0,0.00038217,30]
[377467100,1754417472055,-500.0,0.00038248,7]
[377467101,1754417472064,-19414.75,0.000383,14]
[377467102,1754417472073,-1200.0,0.00038318,5]
[377467103,1754417472082,-1500.0,0.00038356,5]
[377467104,1754417472091,-153.0,0.000384,120]
[377467105,1754417472100,-370.0,0.00038454,5]
[377467106,1754417472109,-1600.0,0.00038592,5]
[377467107,1754417472118,-1940.58,0.0003863,120]
[377467108,1754417472127,-220.132004,0.00038808,2]
[377467109,1754417472137,-194.7,0.00038858,15]
[377467110,1754417472146,-2000.0,0.00038866,5]
[377467111,1754417472155,-500.0,0.00038915,7]
[377467112,1754417472165,-38947.64,0.00039,14]
[377467113,1754417472174,-2404.98820011,0.0003914,5]
[377467114,1754417472183,-1458.65,0.000392,7]
[377467115,1754417472194,-500.0,0.00039227,7]
[377467116,1754417472214,-200.0,0.000393,120]
[377467117,1754417472224,-1940.58,0.00039452,120]
[377467118,1754417472233,-500.0,0.00039611,7]
[377467119,1754417472242,-445.355619,0.00039654,2]
[377467120,1754417472253,-3552.81,0.000397,7]
[377467121,1754417472263,-500.0,0.00039855,7]
[377467122,1754417472272,-153.0,0.000399,120]
[377467123,1754417472282,-2000.0,0.000399,25]
[377467124,1754417472292,-500.0,0.00039999,7]
[377467125,1754417472301,-216.4206905,0.0004,10]
[377467126,1754417472310,-501.2,0.0004,120]
[377467127,1754417472319,-461.15695721,0.0004,7]
[377467128,1754417472328,-160.0,0.0004,7]
[377467129,1754417472337,-500.0,0.00040036,5]
[377467130,1754417472346,-500.0,0.00040262,30]
[377467131,1754417472356,-1940.58,0.00040273,120]
[377467132,1754417472366,-500.0,0.00040333,30]
[377467133,1754417472377,-500.0,0.00040339,30]
[377467134,1754417472387,-500.0,0.00040534,30]
[377467135,1754417472397,-500.0,0.00040626,30]
[377467136,1754417472406,-194.7,0.00040826,15]
[377467137,1754417472415,-200.0,0.00040919,120]
[377467138,1754417472426,-500.0,0.00040947,30]
[377467139,1754417472435,-200.0,0.00040966,120]
[377467140,1754417472444,-259.0,0.00041,90]
[377467141,1754417472454,-408.0,0.00041015,2]
[377467142,1754417472465,-1940.58,0.00041095,120]
[377467143,1754417472474,-227.88,0.000411,120]
[377467144,1754417472484,-177.24755586,0.000411,120]
[377467145,1754417472493,-177.24755586,0.000411,120]
[377467146,1754417472502,-177.24,0.000411,120]
[377467147,1754417472512,-175.78884046,0.000411,120]
[377467148,1754417472522,-175.78884046,0.000411,120]
[377467149,1754417472531,-175.78884046,0.000411,120]
[377467150,1754417472541,-175.78,0.000411,120]
[377467151,1754417472551,-38947.64,0.000411,14]
[377467152,1754417472560,-164.06958443,0.000411,120]
[377467153,1754417472570,-164.06958443,0.000411,120]
[377467154,1754417472579,-164.06958443,0.000411,120]
[377467155,1754417472589,-164.06958443,0.000411,120]
[377467156,1754417472599,-164.06958443,0.000411,120]
[377467157,1754417472608,-164.06958443,0.000411,120]
[377467158,1754417472617,-164.06958443,0.000411,120]
[377467159,1754417472628,-164.06958443,0.000411,120]
[377467160,1754417472637,-164.06958443,0.000411,120]
[377467161,1754417472647,-164.06,0.000411,120]
[377467162,1754417472661,-200.0,0.00041128,30]
[377467163,1754417472670,-200.0,0.00041128,30]
[377467164,1754417472680,-200.0,0.00041128,30]
[377467165,1754417472689,-200.0,0.00041128,30]
[377467166,1754417472700,-200.0,0.00041128,30]
[377467167,1754417472711,-200.0,0.00041128,30]
[377467168,1754417472721,-200.0,0.00041128,30]
[377467169,1754417472730,-200.0,0.00041128,30]
[377467170,1754417472742,-320.0,0.00041128,30]
[377467171,1754417472752,-200.0,0.000412,120]
[377467172,1754417472761,-1458.65,0.000412,14]
[377467173,1754417472771,-500.0,0.00041232,30]
[377467174,1754417472781,-153.0,0.000413,120]